{"text_format":"1","workbook":"xlsx","n_sheets":8,"sheets":["Änderungsdoku","Fragebogen zum Eintritt_TN","Fragebogen zum Eintritt_Träger","Fragebogen zum Austritt_Träger","Zusammenfassung","Stufen berufl.-fachl. Unterst.","Stufen pers.-soziale Unterst.","Katalog"],"not_rendered":{"charts":0,"images":3,"macros":1,"external_links":0,"defined_names":49,"comments":0,"pivot_tables":0},"unopened":[],"bounds":{"document_bytes":16777216,"sheet_cells":100000,"rows_first":2000,"rows_last":500,"rows_between":2000,"halvings":0,"cell_chars":16384,"cell_head_chars":4096},"cells_cut":0,"cells_raw":0,"read":"whole","date_system":"1900"}

{"sheet":"Änderungsdoku","index":0,"n_rows":9,"n_cols":3,"rows_kept":9,"cut":false,"hidden":false,"merged":[]}
["Änderungsdokumentation"]
["Teilnehmerfragebogen (mit SGB II TN)"]
["LAT - 2.2 Berufliche Integration spezieller Zielgruppen"]
[{"$f":"IF(AND('Fragebogen zum Eintritt_TN'!M13=\"\",'Fragebogen zum Eintritt_TN'!M19=\"\",'Fragebogen zum Eintritt_Träger'!M10=\"\",'Fragebogen zum Eintritt_Träger'!M16=\"\",'Fragebogen zum Austritt_Träger'!M10=\"\",'Fragebogen zum Austritt_Träger'!M16=\"\"),\" - öffentlich -\",\" - vertraulich -\")","v":" - öffentlich -"}]
[]
["TLVwA"]
["Version","Datum","Beschreibung der Änderung"]
["V 1.0","2023-01-06","Übernahme der GFAW-Version V 1.9 vom 08.09.22"]
["V 1.1","2024-01-22","Aktualisierung Sicherheitszertifikat, Anpassung Import aus Vorversionen"]

{"sheet":"Fragebogen zum Eintritt_TN","index":1,"n_rows":190,"n_cols":38,"rows_kept":190,"cut":false,"hidden":false,"merged":[[177,5,177,35],[21,12,21,35],[111,6,112,35],[158,5,165,35],[87,5,89,35],[128,5,138,35],[75,6,76,35],[84,6,85,35],[31,5,31,9],[36,5,36,9],[22,16,22,35],[22,12,22,15],[23,12,23,15],[25,13,26,35],[0,0,15,3],[12,12,12,17],[14,12,14,35],[20,12,20,35],[18,12,18,21],[18,26,18,35],[5,4,6,27],[4,29,5,36]]}
["Spalten ausblenden    Spalten ausblenden    Spalten ausblenden    Spalten ausblenden"]
[]
[]
[]
[null,null,null,null,"Teilnehmerfragebogen zum Eintritt",null,null,null,null,null,null,null,null,null,null,null,null,null,null,null,null,null,null,null,null,null,null,null,null,"zur \"Datenschutzerklärung Förderverfahren\""]
[null,null,null,null,"in eine Maßnahme (mit SGB II Teilnehmenden), die nach der Richtlinie \n\"Arbeit für Thüringen\" (Berufliche Integration spezieller Zielgruppen, FG 2.2) gefördert wird"]
[]
[null,null,null,null,{"$f":"CONCATENATE(\"Formularversion: \",LOOKUP(2,1/(Änderungsdoku!$A$1:$A$992<>\"\"),Änderungsdoku!A:A),\" vom \",TEXT(VLOOKUP(LOOKUP(2,1/(Änderungsdoku!$A$1:$A$992<>\"\"),Änderungsdoku!A:A),Änderungsdoku!$A$1:$B$992,2,FALSE),\"TT.MM.JJ\"),Änderungsdoku!$A$4)","v":"Formularversion: V 1.1 vom 22.01.24 - öffentlich -"}]
[]
[]
[]
[]
[null,null,null,null,null,"Aktenzeichen"]
[]
[null,null,null,null,null,"Zuwendungsempfänger"]
[]
[null,null,null,null,null,"1.","Allgemeine Daten"]
[]
[null,null,null,null,null,"Name:",null,null,null,null,null,null,null,null,null,null,null,null,null,null,null,null,null,null,null,"Vorname:"]
[]
[null,null,null,null,null,"Anschrift"]
[null,null,null,null,null,null,null,null,null,null,null,null,"Straße, Hausnummer"]
[]
[null,null,null,null,null,null,null,null,null,null,null,null,"PLZ",null,null,null,"Ort"]
[]
["QUALIFIZIERUNGSPROJEKT",{"$f":"D26","v":0},null,null,null,null,null,null,null,null,null,null,null,"Bitte ankreuzen, wenn Sie Teilnehmer/in aus einem Projekt zur \nQualifizierung oder Integration von Migranten und Flüchtlingen sind."]
[]
[]
[]
[null,null,null,null,null,"2.","Geburtsdatum"]
[]
["GEBDAT",{"$f":"F32","v":"00:00:00"}]
[]
[]
[null,null,null,null,null,"3.","Eintrittsdatum"]
[]
["EINTRDAT",{"$f":"F37","v":"00:00:00"},"EINTRALTER",{"$f":"DATEDIF(F32,F37,\"y\")","v":0}]
[]
[]
[null,null,null,null,null,"4.","Geschlecht",null,null,null,null,null,null,null,null,null,null,null,null,null,null,null,null,null,null,null,null,null,null,null,null,null,null,null,null,{"$f":"IF(COUNTIF(D42:D48,TRUE)>1,\"Fehleingabe\",\"\")","v":""}]
[]
["GESCHL",{"$f":"IFERROR(VLOOKUP(TRUE,D42:G48,4,FALSE),\"\")","v":""},null,false,null,null,"weiblich"]
[]
[null,null,null,false,null,null,"männlich"]
[]
[null,null,null,false,null,null,"divers"]
[]
[null,null,null,false,null,null,"keine Angabe"]
[]
[]
["SCHULE",{"$f":"IF(AND(D54=TRUE,D56=FALSE),\"ja\",IF(AND(D54=FALSE,D56=TRUE),\"nein\",\"\"))","v":""},null,null,null,"5.","Schulabschluss",null,null,null,null,null,null,null,null,null,null,null,null,null,null,null,null,null,null,null,null,null,null,null,null,null,null,null,null,{"$f":"IF(COUNTIF(D54:D56,TRUE)>1,\"Fehleingabe\",\"\")","v":""}]
[null,null,null,null,null,null,"Haben Sie einen in Deutschland anerkannten Schulabschluss?"]
[]
[null,null,null,false,null,null,"ja"]
[]
[null,null,null,"FALSCH",null,null,"nein"]
[]
[]
["BILDUNG",{"$f":"IF(AND(D62=TRUE,D64=FALSE),\"ja\",IF(AND(D62=FALSE,D64=TRUE),\"nein\",\"\"))","v":""},null,null,null,"6.","Berufsabschluss",null,null,null,null,null,null,null,null,null,null,null,null,null,null,null,null,null,null,null,null,null,null,null,null,null,null,null,null,{"$f":"IF(COUNTIF(D62:D64,TRUE)>1,\"Fehleingabe\",\"\")","v":""}]
[null,null,null,null,null,null,"Haben Sie einen in Deutschland anerkannten Berufsabschluss?"]
[]
[null,null,null,"FALSCH",null,null,"ja"]
[]
[null,null,null,false,null,null,"nein"]
[]
[]
["STUDIUM",{"$f":"IF(AND(D70=TRUE,D72=FALSE),\"ja\",IF(AND(D70=FALSE,D72=TRUE),\"nein\",\"\"))","v":""},null,null,null,"7.","Studienabschluss",null,null,null,null,null,null,null,null,null,null,null,null,null,null,null,null,null,null,null,null,null,null,null,null,null,null,null,null,{"$f":"IF(COUNTIF(D70:D72,TRUE)>1,\"Fehleingabe\",\"\")","v":""}]
[null,null,null,null,null,null,"Haben Sie einen in Deutschland anerkannten Studienabschluss?"]
[]
[null,null,null,false,null,null,"ja"]
[]
[null,null,null,"FALSCH",null,null,"nein"]
[]
[]
["ARBEITSLOSIGKEIT",{"$f":"IF(AND(D79=TRUE,D81=FALSE),\"ja\",IF(AND(D79=FALSE,D81=TRUE),\"nein\",\"\"))","v":""},null,null,null,"8.","Arbeitslosigkeit unmittelbar vor Eintritt",null,null,null,null,null,null,null,null,null,null,null,null,null,null,null,null,null,null,null,null,null,null,null,null,null,null,null,null,{"$f":"IF(COUNTIF(D79:D81,TRUE)>1,\"Fehleingabe\",\"\")","v":""}]
[null,null,null,null,null,null,"Waren Sie unmittelbar vor Eintritt in die Maßnahme bei einem Jobcenter oder einer Agentur für Arbeit arbeitslos gemeldet?"]
[]
[]
[null,null,null,false,null,null,"ja, ich war arbeitslos gemeldet",null,null,null,null,null,null,null,null,null,null,null,null,null,null,null,null,null,null,null,null,null,null,null,null,null,null,null,null,null,null,"ja"]
[]
[null,null,null,false,null,null,"nein",null,null,null,null,null,null,null,null,null,null,null,null,null,null,null,null,{"$f":"CONCATENATE(\"wenn nein, weiter mit Punkt \",F103)","v":"wenn nein, weiter mit Punkt 10."}]
[]
[]
["DAUER_ALO",{"$f":"IFERROR(VLOOKUP(TRUE,D92:G100,4,FALSE),\"\")","v":""},null,null,null,"9.","Dauer der Arbeitslosigkeit vor Eintritt",null,null,null,null,null,null,null,null,null,null,null,null,null,null,null,null,null,null,null,null,null,null,null,null,null,null,null,null,{"$f":"IF(AND(D79=TRUE,COUNTIF(D92:D100,FALSE)=5),\"Bitte angeben!\",IF(AND(D81=TRUE,COUNTIF(D92:D100,FALSE)<>5),\"Ist nicht anzugeben!\",IF(COUNTIF(D92:D100,TRUE)>1,\"Fehleingabe\",\"\")))","v":""}]
[null,null,null,null,null,null,"Wenn Sie unmittelbar vor Eintritt in die Maßnahme arbeitslos gemeldet waren:\nWie lange waren Sie ununterbrochen arbeitslos gemeldet?"]
[]
[]
[null,null,null,null,null,"Erläuterung: Wenn Sie während Ihrer Arbeitslosigkeit an einer Weiterbildungsmaßnahme oder an einer Arbeitsgelegenheit \nteilgenommen haben oder bei der Arbeitsagentur/beim Jobcenter für mehr als sechs Wochen krank gemeldet waren, geben \nSie hier bitte nur den Zeitraum seit dem Austritt aus der entsprechenden Maßnahme bzw. dem Ende der Erkrankung an."]
[]
[]
[]
[null,null,null,false,null,null,"bis einschließlich 12 Monate"]
[]
[null,null,null,false,null,null,"länger als 12 Monate bis einschließlich 2 Jahre"]
[]
[null,null,null,"FALSCH",null,null,"länger als 2 Jahre bis einschließlich 5 Jahre"]
[]
[null,null,null,"FALSCH",null,null,"länger als 5 Jahre bis einschließlich 10 Jahre"]
[]
[null,null,null,"FALSCH",null,null,"länger als 10 Jahre"]
[]
[]
["GRUNDSICHERUNG",{"$f":"IF(AND(D106=TRUE,D108=FALSE),\"ja\",IF(AND(D106=FALSE,D108=TRUE),\"nein\",\"\"))","v":""},null,null,null,"10.","Bezug von Grundsicherungsleistungen nach dem SGB II",null,null,null,null,null,null,null,null,null,null,null,null,null,null,null,null,null,null,null,null,null,null,null,null,null,null,null,null,{"$f":"IF(COUNTIF(D106:D108,TRUE)>1,\"Fehleingabe\",\"\")","v":""}]
[null,null,null,null,null,null,"Haben Sie unmittelbar vor Eintritt in die Maßnahme Arbeitslosengeld II bezogen?"]
[]
[null,null,null,"FALSCH",null,null,"ja, ich habe vor Eintritt Arbeitslosengeld II bezogen"]
[]
[null,null,null,false,null,null,"nein",null,null,null,null,null,null,null,null,null,null,null,null,null,null,null,null,{"$f":"CONCATENATE(\"wenn nein, weiter mit Punkt \",F126)","v":"wenn nein, weiter mit Punkt 12."}]
[]
[]
["DAUER_GRUNDSICHERUNG",{"$f":"IFERROR(VLOOKUP(TRUE,D115:G123,4,FALSE),\"\")","v":""},null,null,null,"11.","Dauer des Bezugs von Grundsicherungsleistungen nach dem SGB II",null,null,null,null,null,null,null,null,null,null,null,null,null,null,null,null,null,null,null,null,null,null,null,null,null,null,null,null,{"$f":"IF(AND(D106=TRUE,COUNTIF(D115:D123,FALSE)=5),\"Bitte angeben!\",IF(AND(D108=TRUE,COUNTIF(D115:D123,FALSE)<>5),\"Ist nicht anzugeben!\",IF(COUNTIF(D115:D123,TRUE)>1,\"Fehleingabe\",\"\")))","v":""}]
[null,null,null,null,null,null,"Wenn Sie unmittelbar vor Eintritt in die Maßnahme Grundsicherungsleistungen nach dem SGB II bezogen haben: Haben Sie unmittelbar vor Eintritt in die Maßnahme Arbeitslosengeld II bezogen?"]
[]
[]
[null,null,null,"FALSCH",null,null,"bis einschließlich 12 Monate"]
[]
[null,null,null,"FALSCH",null,null,"länger als 12 Monate bis einschließlich 2 Jahre"]
[]
[null,null,null,"FALSCH",null,null,"länger als 2 Jahre bis einschließlich 5 Jahre"]
[]
[null,null,null,"FALSCH",null,null,"länger als 5 Jahre bis einschließlich 10 Jahre"]
[]
[null,null,null,"FALSCH",null,null,"länger als 10 Jahre"]
[]
[]
["HAUSHALTSFORM",{"$f":"IFERROR(VLOOKUP(TRUE,D141:G153,4,FALSE),\"\")","v":""},null,null,null,"12.","Haushaltsform des Teilnehmenden",null,null,null,null,null,null,null,null,null,null,null,null,null,null,null,null,null,null,null,null,null,null,null,null,null,null,null,null,{"$f":"IF(COUNTIF(D141:D153,TRUE)>1,\"Fehleingabe\",\"\")","v":""}]
[null,null,null,null,null,null,"Welche der folgenden Haushaltsformen trifft bei Ihnen zu?"]
[]
[null,null,null,null,null,"Hinweis: Bei Teilnehmenden ohne eigene Haushaltsführung (ggf. Teilnehmende aus einem Projekt zur Qualifizierung \nund Integration von Migranten und Flüchtlingen) ist die am ehesten zutreffende aktuelle Familienform zu wählen.\nErläuterungen: Sie leben dann in einem Alleinerziehendenhaushalt, wenn Sie a) als alleinerziehende Mutter/allein-\nerziehender Vater mit Ihrem bzw. Ihren unter 18-jährigen Kind/ern oder Ihrem bzw. Ihren 18- bis 24-jährigen Kind/ern \nzusammen leben, das/die von Ihnen wirtschaftlich abhängig ist/sind. b) oder selbst als abhängiges Kind nur mit \neinem Ihrer Elternteile zusammenleben. Abhängige Kinder im Sinne dieser Frage sind alle Kinder unter 18 Jahren \nsowie diejenigen jungen Menschen von 18 bis 24 Jahren, die mit ihren Eltern zusammenleben und von ihnen wirt-\nschaftlich abhängig sind. Erwerbslosenhaushalte sind Haushalte, in denen keine einzige Person (Sie selbst ein-\ngeschlossen) als Arbeiternehmer/in, als Selbstständige/r oder im Rahmen einer betrieblichen Ausbildung erwerbs-\ntätig ist, sondern alle Personen arbeitslos bzw. nicht erwerbstätig sind. Gemischte Haushalte sind Haushalte, in \ndenen ein/e erwerbslose/r Partner/in mit einem/r erwerbstätigem/n Partner/in zusammenlebt."]
[]
[]
[]
[]
[]
[]
[]
[]
[]
[]
[]
[null,null,null,"FALSCH",null,null,"alleinlebend (ohne Partner oder abhängige Kinder)"]
[]
[null,null,null,false,null,null,"alleinerziehend mit abhängigen Kindern"]
[]
[null,null,null,"FALSCH",null,null,"Erwerbslosenhaushalt mit abhängigen Kindern"]
[]
[null,null,null,"FALSCH",null,null,"Erwerbslosenhaushalt ohne abhängige Kinder"]
[]
[null,null,null,"FALSCH",null,null,"Gemischter Haushalt mit abhängigen Kindern"]
[]
[null,null,null,"FALSCH",null,null,"Gemischter Haushalt ohne abhängige Kinder"]
[]
[null,null,null,"FALSCH",null,null,"weder noch"]
[]
[]
["MIGRANT",{"$f":"IFERROR(VLOOKUP(TRUE,D168:G172,4,FALSE),\"\")","v":""},null,null,null,"13.","Teilnehmer/in mit Migrationshintergrund oder aus anerkannter Minderheit",null,null,null,null,null,null,null,null,null,null,null,null,null,null,null,null,null,null,null,null,null,null,null,null,null,null,null,null,{"$f":"IF(COUNTIF(D168:D172,TRUE)>1,\"Fehleingabe\",\"\")","v":""}]
[null,null,null,null,null,null,"Haben Sie einen Migrationshintergrund oder gehören Sie einer anerkannten Minderheit an?"]
[]
[null,null,null,null,null,"Erläuterung: Diese Angabe ist freiwillig. Wird keine Angaben gemacht, führt das nicht zum Ausschluss aus der Maßnahme. Wenn Sie mit \"ja\" antworten, muss eines der nachfolgend aufgeführten Kriterien erfüllt sein:\n- Sie besitzen keine deutsche Staatsangehörigkeit.\n- Sie wurden in Deutschland eingebürgert.\n- Sie sind nicht auf dem Boden der heutigen Bundesrepublik Deutschland geboren und sind nach 1949 zugewandert.\n- Ihre Mutter und/oder Ihr Vater sind nach 1949 aus dem Ausland zugewandert.\n- Ihre Mutter und/oder Ihr Vater wurden als Ausländer in Deutschland geboren.\n- Sie gehören der anerkannten Minderheit der Sinti und Roma an."]
[]
[]
[]
[]
[]
[]
[]
[]
[null,null,null,false,null,null,"ja",null,null,null,null,null,null,{"$f":"CONCATENATE(\"nur wenn ja, weiter mit Punkt \",F175,\" und Punkt \",F181)","v":"nur wenn ja, weiter mit Punkt 14. und Punkt 15."}]
[]
[null,null,null,false,null,null,"nein"]
[]
[null,null,null,"FALSCH",null,null,"keine Angabe"]
[]
[]
["HERKUNFSTLAND",{"$f":"F178","v":""},null,null,null,"14.","Herkunftsland",null,null,null,null,null,null,null,null,null,null,null,null,null,null,null,null,null,null,null,null,null,null,null,null,null,null,null,null,{"$f":"IF(AND(D168=TRUE,F178=\"\"),\"Bitte angeben!\",IF(AND(OR(D170=TRUE,D172=TRUE),F178<>\"\"),\"Ist nicht anzugeben!\",\"\"))","v":""}]
[null,null,null,null,null,null,"Aus welchem Herkunftsland kommen Sie?"]
[]
[null,null,null,null,null,""]
[]
[]
["AUFENTHALTSSTATUS",{"$f":"IFERROR(VLOOKUP(TRUE,D184:G190,4,FALSE),\"\")","v":""},null,null,null,"15.","Aufenthaltsstatus",null,null,null,null,null,null,null,null,null,null,null,null,null,null,null,null,null,null,null,null,null,null,null,null,null,null,null,null,{"$f":"IF(AND(D168=TRUE,COUNTIF(D184:D190,FALSE)=4),\"Bitte angeben!\",IF(AND(OR(D170=TRUE,D172=TRUE),COUNTIF(D184:D190,FALSE)<>4),\"Ist nicht anzugeben!\",IF(COUNTIF(D184:D190,TRUE)>1,\"Fehleingabe\",\"\")))","v":""}]
[null,null,null,null,null,null,"Welchen Aufenthaltsstatus haben Sie?"]
[]
[null,null,null,"FALSCH",null,null,"asylberechtigt, Anerkennung Flüchtlingseigenschaft, subsidiärer Schutz"]
[]
[null,null,null,"FALSCH",null,null,"Duldung"]
[]
[null,null,null,"FALSCH",null,null,"Gestattung (laufendes Verfahren)"]
[]
[null,null,null,"FALSCH",null,null,"Migrant/-in ohne Asyl- oder Fluchthintergrund"]

{"sheet":"Fragebogen zum Eintritt_Träger","index":2,"n_rows":47,"n_cols":36,"rows_kept":47,"cut":false,"hidden":false,"merged":[[0,0,12,3],[9,12,9,17],[11,12,11,35],[5,4,6,35],[15,12,15,21],[15,26,15,35],[17,12,17,35],[18,12,18,35],[19,12,19,15],[19,16,19,35],[20,12,20,15]]}
["Spalten ausblenden    Spalten ausblenden    Spalten ausblenden    Spalten ausblenden"]
[]
[]
[]
[null,null,null,null,"Fragebogen zum Teilnehmenden zum Eintritt"]
[null,null,null,null,{"$f":"'Fragebogen zum Eintritt_TN'!$E$6","v":"in eine Maßnahme (mit SGB II Teilnehmenden), die nach der Richtlinie \n\"Arbeit für Thüringen\" (Berufliche Integration spezieller Zielgruppen, FG 2.2) gefördert wird"}]
[]
[null,null,null,null,{"$f":"'Fragebogen zum Eintritt_TN'!$E$8","v":"Formularversion: V 1.1 vom 22.01.24 - öffentlich -"}]
[]
[null,null,null,null,null,"Aktenzeichen"]
[]
[null,null,null,null,null,"Zuwendungsempfänger"]
[]
[null,null,null,null,null,"1.","Allgemeine Daten des Teilnehmenden"]
[]
[null,null,null,null,null,"Name:",null,null,null,null,null,null,null,null,null,null,null,null,null,null,null,null,null,null,null,"Vorname:"]
[]
[null,null,null,null,null,"Anschrift"]
[null,null,null,null,null,null,null,null,null,null,null,null,"Straße, Hausnummer"]
[]
[null,null,null,null,null,null,null,null,null,null,null,null,"PLZ",null,null,null,"Ort"]
[]
[]
[null,null,null,null,null,"2.","Angaben zum Teilnehmenden"]
["EINTR_BERUFLICHUNT",{"$f":"IFERROR(VLOOKUP(TRUE,D27:G37,4,FALSE),\"\")","v":""},null,null,null,"Beruflich-fachlicher Unterstützungsbedarf bei Eintritt",null,null,null,null,null,null,null,null,null,null,null,null,null,null,null,null,null,null,null,null,null,null,null,null,null,null,null,null,null,{"$f":"IF(COUNTIF(D27:D37,TRUE)>1,\"Fehleingabe\",\"\")","v":""}]
[]
[null,null,null,"FALSCH",null,null,"kein Unterstützungsbedarf auf beruflich-fachlicher Ebene"]
[]
[null,null,null,"FALSCH",null,null,"inhaltlich-fachlicher Unterstützungsbedarf in Arbeit/Ausbildung/Maßnahme"]
[]
[null,null,null,"FALSCH",null,null,"Bedarf an Vermittlungsunterstützung"]
[]
[null,null,null,"FALSCH",null,null,"beruflicher Qualifizierungsbedarf"]
[]
[null,null,null,"FALSCH",null,null,"beruflicher Orientierungsbedarf"]
[]
[null,null,null,"FALSCH",null,null,"noch keine beruflich-fachliche Arbeit möglich"]
[]
["EINTR_PERSUNT",{"$f":"IFERROR(VLOOKUP(TRUE,D41:G47,4,FALSE),\"\")","v":""},null,null,null,"Persönlich-sozialer Unterstützungsbedarf bei Eintritt",null,null,null,null,null,null,null,null,null,null,null,null,null,null,null,null,null,null,null,null,null,null,null,null,null,null,null,null,null,{"$f":"IF(COUNTIF(D41:D47,TRUE)>1,\"Fehleingabe\",\"\")","v":""}]
[]
[null,null,null,"FALSCH",null,null,"kein Unterstützungsbedarf auf persönlich-sozialer Ebene"]
[]
[null,null,null,"FALSCH",null,null,"persönlich-sozialer Unterstützungsbedarf in Arbeit/Ausbildung/Maßnahme"]
[]
[null,null,null,"FALSCH",null,null,"Bedarf an Aneignung arbeitsmarktrelevanter Soft Skills"]
[]
[null,null,null,"FALSCH",null,null,"Bedarf bei Stabilisierung persönlicher Rahmenbedingungen"]

{"sheet":"Fragebogen zum Austritt_Träger","index":3,"n_rows":94,"n_cols":38,"rows_kept":94,"cut":false,"hidden":false,"merged":[[66,6,67,35],[19,16,19,35],[25,5,25,9],[29,6,30,35],[40,5,42,35],[44,6,45,35],[57,6,58,35],[19,12,19,15],[20,12,20,15],[18,12,18,35],[5,4,6,35],[0,0,12,3],[9,12,9,17],[11,12,11,35],[17,12,17,35],[15,12,15,21],[15,26,15,35]]}
["Spalten ausblenden    Spalten ausblenden    Spalten ausblenden    Spalten ausblenden"]
[]
[]
[]
[null,null,null,null,"Fragebogen zum Teilnehmenden zum Austritt"]
[null,null,null,null,{"$f":"\"aus einer\"&RIGHT('Fragebogen zum Eintritt_TN'!$E$6,156)","v":"aus einer Maßnahme (mit SGB II Teilnehmenden), die nach der Richtlinie \n\"Arbeit für Thüringen\" (Berufliche Integration spezieller Zielgruppen, FG 2.2) gefördert wird"}]
[]
[null,null,null,null,{"$f":"'Fragebogen zum Eintritt_TN'!$E$8","v":"Formularversion: V 1.1 vom 22.01.24 - öffentlich -"}]
[]
[null,null,null,null,null,"Aktenzeichen"]
[]
[null,null,null,null,null,"Zuwendungsempfänger"]
[]
[null,null,null,null,null,"1.","Allgemeine Daten"]
[]
[null,null,null,null,null,"Name:",null,null,null,null,null,null,null,null,null,null,null,null,null,null,null,null,null,null,null,"Vorname:"]
[]
[null,null,null,null,null,"Anschrift"]
[null,null,null,null,null,null,null,null,null,null,null,null,"Straße, Hausnummer"]
[]
[null,null,null,null,null,null,null,null,null,null,null,null,"PLZ",null,null,null,"Ort"]
[]
[]
[null,null,null,null,null,"2.","Austrittsdatum"]
[]
["AUSTRDAT",{"$f":"F26","v":"00:00:00"}]
[]
[]
["BILDUNG_NA",{"$f":"IF(AND(D33=TRUE,D35=FALSE),\"ja\",IF(AND(D33=FALSE,D35=TRUE),\"nein\",\"\"))","v":""},null,null,null,"3.","Erreichter Berufsabschluss oder Zertifikat",null,null,null,null,null,null,null,null,null,null,null,null,null,null,null,null,null,null,null,null,null,null,null,null,null,null,null,null,{"$f":"IF(COUNTIF(D33:D35,TRUE)>1,\"Fehleingabe\",\"\")","v":""}]
[null,null,null,null,null,null,"Wurde infolge der Teilnahme ein Berufsabschluss oder ein anderes Zertifikat über eine berufliche Qualifikation erlangt?"]
[]
[]
[null,null,null,"FALSCH",null,null,"ja"]
[]
[null,null,null,"FALSCH",null,null,"nein"]
[]
[]
["ERWERBSTNA",{"$f":"IFERROR(VLOOKUP(TRUE,D45:G68,4,FALSE),\"\")","v":""},null,null,null,"4.","Erwerbsstatus nach Austritt",null,null,null,null,null,null,null,null,null,null,null,null,null,null,null,null,null,null,null,null,null,null,null,null,null,null,null,null,{"$f":"IF(COUNTIF(D45:D67,TRUE)>1,\"Fehleingabe\",\"\")","v":""}]
[null,null,null,null,null,null,"Wie ist der Erwerbsstatus des Teilnehmenden unmittelbar nach seiner Teilnahme an der geförderten Maßnahme?"]
[]
[null,null,null,null,null,"Erläuterungen: Die Angabe bezieht sich auf die Situation am ersten Werktag nach Austritt aus der  Maßnahme. \nSollte neben dem Merkmal \"arbeitslos gemeldet\" noch ein weiteres Merkmal zutreffen, bitte immer nur  \"arbeitslos \ngemeldet\" angeben."]
[]
[]
[]
[null,null,null,"FALSCH",null,null,"als Arbeitnehmer/in beschäftigt (auch Personen, die ausschließlich eine geringfügige Beschäftigung ausüben, aber nicht arbeitslos gemeldet sind)",null,null,null,null,null,null,null,null,null,null,null,null,null,null,null,null,null,null,null,null,null,null,null,null,null,null,null,null,null,null,"als Arbeitnehmer/in beschäftigt"]
[]
[]
[null,null,null,"FALSCH",null,null,"selbstständig (einschließlich mithelfende Familienangehörige)"]
[]
[null,null,null,"FALSCH",null,null,"Ausbildung in einem Betrieb"]
[]
[null,null,null,"FALSCH",null,null,"außerbetriebliche bzw. schulische Berufsausbildung"]
[]
[null,null,null,"FALSCH",null,null,"Weiterbildungsmaßnahme, berufsvorbereitende Maßnahme"]
[]
[null,null,null,"FALSCH",null,null,"Arbeitsgelegenheit"]
[]
[null,null,null,"FALSCH",null,null,"arbeitslos gemeldet (einschließlich Personen, die im Rahmen der gemeldeten Arbeitslosigkeit in geringem Umfang beschäftigt sind)",null,null,null,null,null,null,null,null,null,null,null,null,null,null,null,null,null,null,null,null,null,null,null,null,null,null,null,null,null,null,"arbeitslos gemeldet"]
[]
[]
[null,null,null,"FALSCH",null,null,"Schüler/in an allgemeinbildender Schule\n"]
[]
[null,null,null,"FALSCH",null,null,"Student/in"]
[]
[null,null,null,"FALSCH",null,null,"Teilnahme an Freiwilligendienst oder an freiwilligem Wehrdienst"]
[]
[null,null,null,"FALSCH",null,null,"nicht erwerbstätig ohne Arbeitslosenmeldung (z. B. Hausfrau/Hausmann, Vollzeitelternzeit, Pflege von Angehörigen, Krankheit, sonstige Nichterwerbstätigkeit)",null,null,null,null,null,null,null,null,null,null,null,null,null,null,null,null,null,null,null,null,null,null,null,null,null,null,null,null,null,null,"nicht erwerbstätig ohne Arbeitslosenmeldung"]
[]
[]
[]
[null,null,null,null,null,"5.","Angaben zum Teilnehmenden"]
["AUSTR_BERUFLICHUNT",{"$f":"IFERROR(VLOOKUP(TRUE,D74:G84,4,FALSE),\"\")","v":""},null,null,null,"Beruflich-fachlicher Unterstützungsbedarf bei Austritt",null,null,null,null,null,null,null,null,null,null,null,null,null,null,null,null,null,null,null,null,null,null,null,null,null,null,null,null,null,{"$f":"IF(COUNTIF(D74:D84,TRUE)>1,\"Fehleingabe\",\"\")","v":""}]
[]
[null,null,null,"FALSCH",null,null,"kein Unterstützungsbedarf auf beruflich-fachlicher Ebene"]
[]
[null,null,null,"FALSCH",null,null,"inhaltlich-fachlicher Unterstützungsbedarf in Arbeit/Ausbildung/Maßnahme"]
[]
[null,null,null,"FALSCH",null,null,"Bedarf an Vermittlungsunterstützung"]
[]
[null,null,null,"FALSCH",null,null,"beruflicher Qualifizierungsbedarf"]
[]
[null,null,null,"FALSCH",null,null,"beruflicher Orientierungsbedarf"]
[]
[null,null,null,"FALSCH",null,null,"noch keine beruflich-fachliche Arbeit möglich"]
[]
["AUSTR_PERSUNT",{"$f":"IFERROR(VLOOKUP(TRUE,D88:G94,4,FALSE),\"\")","v":""},null,null,null,"Persönlich-sozialer Unterstützungsbedarf bei Austritt",null,null,null,null,null,null,null,null,null,null,null,null,null,null,null,null,null,null,null,null,null,null,null,null,null,null,null,null,null,{"$f":"IF(COUNTIF(D88:D94,TRUE)>1,\"Fehleingabe\",\"\")","v":""}]
[]
[null,null,null,"FALSCH",null,null,"kein Unterstützungsbedarf auf persönlich-sozialer Ebene"]
[]
[null,null,null,"FALSCH",null,null,"persönlich-sozialer Unterstützungsbedarf in Arbeit/Ausbildung/Maßnahme"]
[]
[null,null,null,"FALSCH",null,null,"Bedarf an Aneignung arbeitsmarktrelevanter Soft Skills"]
[]
[null,null,null,false,null,null,"Bedarf bei Stabilisierung persönlicher Rahmenbedingungen"]

{"sheet":"Zusammenfassung","index":4,"n_rows":2,"n_cols":38,"rows_kept":2,"cut":false,"hidden":false,"merged":[]}
["ID","Aktenzeichen","Zuwendungsempfänger","Name","Vorname","Anschrift","PLZ","Ort","Teilnehmer aus Projekt","Geburtsdatum","Eintritt","Geschlecht","Schulabschluss","Berufsabschluss","Studienabschluss","Arbeitslosigkeit Eintritt","Dauer Arbeitslosigkeit vor Eintritt","Bezug Grundsicherung","Dauer Bezug Grundsicherung","Haushaltsform","Migrationshintergrund","Herkunftsland","Aufenthaltsstatus","Beruflich-fachlicher Unterstützungsbedarf bei Eintritt","Persönlich-sozialer Unterstützungsbedarf bei Eintritt","Austritt","erreichter Abschluss","Erwerbsstatus Austritt","Beruflich-fachlicher Unterstützungsbedarf bei Austritt","Persönlich-sozialer Unterstützungsbedarf bei Austritt","vollständig","Telefon","E-Mail","Land","Wohnsitz","Behinderung","Art_Austritt","Name, Vorname"]
[null,null,null,null,null,null,null,null,null,null,null,null,null,null,null,null,null,null,null,null,null,null,null,null,null,null,null,null,null,null,null,null,null,null,null,null,null,{"$f":"Tabelle1[Name]& IF(Tabelle1[Vorname]<>\"\", \", \" &Tabelle1[Vorname],)","v":""}]

{"sheet":"Stufen berufl.-fachl. Unterst.","index":5,"n_rows":9,"n_cols":3,"rows_kept":9,"cut":false,"hidden":false,"merged":[]}
["Übersicht der sechs Stufen der Unterstützungsbedarfe auf beruflich-fachlicher Ebene"]
[]
["Stufe","Unterstützungsbedarf","Erläuterungen beruflich-fachliche Unterstützungsbedarfe"]
[1,"Kein (Unterstützungs-) Bedarf auf beruflich-fachlicher Ebene (mehr)","Teilnehmerin benötigt die Betreuung im Integrationsprojekt nicht. Er bzw. sie ist bereits in Arbeit/Ausbildung/Maßnahme integriert und braucht keine weitere beruflich-fachliche Unterstützung.\nÚ Bei Projekteintritt weniger relevant, jedoch wichtig für den Vergleich der Situation bei Projektaustritt."]
[2,"Inhaltlich-fachlicher Unterstützungsbedarf in Arbeit/Ausbildung/\nMaßnahme","Teilnehmer/-in ist bereits in Arbeit/Ausbildung/Maßnahme integriert, benötigt aber noch Unterstützung auf der inhaltlich-fachlichen Ebene, z. B.\n\u009f Ergänzende schulische oder berufsfachliche Nachhilfe,\n\u009f Unterstützung bei Kommunikation mit Arbeitgebern oder Schulungsleiter/-innen bei Über- oder Unterforderung…"]
[3,"Bedarf an Vermittlungsunterstützung","Teilnehmer/-in hat bereits eine realistische berufliche Perspektive und die dafür erforderlichen Qualifikationen, braucht aber noch Hilfe bei der Suche und Anbahnung eines Arbeitsverhältnisses, z. B.\n\u009f Unterstützung bei der Beschaffung von Zeugnissen und weiteren relevanten Dokumenten,\n\u009f Unterstützung beim Erstellen von Bewerbungen,\n\u009f Unterstützung bei der Stellensuche und der Vorbereitung von Bewerbungsgesprächen, ...\nUmfasst nicht Vermittlungsunterstützung in Praktika!"]
[4,"Beruflicher Qualifizierungsbedarf","Teilnehmer/-in hat bereits eine realistische berufliche Perspektive, es fehlen aber die nötigen beruflich-fachlichen Qualifikationen. Unterstützungsbedarf umfasst z. B.\n\u009f Unterstützung bezüglich Erhalt und Einlösung eines Bildungsgutscheins bei der Grundsicherungsstelle,\n\u009f Unterstützung bei der Suche nach einem Praktikum, in dem beruflich-fachliche Fähigkeiten angeeignet werden sollen, …\n\u009f Vermittlung von Fachkompetenzen"]
[5,"Beruflicher Orientierungsbedarf","Teilnehmer/-in hat noch keine berufliche Perspektive oder unrealistische Berufsvorstellungen. Unterstützungsbedarf umfasst z. B.\n\u009f Unterstützung bei der Berufsorientierung,\n\u009f Anbahnung von Orientierungspraktika,\n\u009f Vermittlung an Stellen zur Berufsberatung, …"]
[6,"Noch keine beruflich-fachliche Arbeit möglich","Teilnehmer/-in muss vordringlich hinsichtlich persönlicher Rahmenbedingungen stabilisiert und unterstützt werden, bevor weitere Schritte in Richtung einer Berufsorientierung, Qualifizierung oder Integration in Arbeit/Ausbildung/Maßnahme unternommen werden können."]

{"sheet":"Stufen pers.-soziale Unterst.","index":6,"n_rows":7,"n_cols":3,"rows_kept":7,"cut":false,"hidden":false,"merged":[]}
["Übersicht der vier Stufen der Unterstützungsbedarfe auf persönlich-sozialer Ebene"]
[]
["Stufe","Unterstützungsbedarf","Erläuterungen persönlich-soziale Unterstützungsbedarfe"]
[1,"Kein (Unterstützungs-) Bedarf auf persönlich-sozialer Ebene (mehr)","Die persönliche und soziale Stabilisierung ist bereits gegeben, Teilnehmer/-in benötigt keine Unterstützung im persönlichen und sozialen Bereich. Soziale Kompetenzen und Auftreten sind unproblematisch im Hinblick auf eine Arbeitsaufnahme."]
[2,"Persönlich-sozialer Unterstützungsbedarf in Arbeit/Ausbildung/\nMaßnahme","Teilnehmer/-in hat bereits eine Arbeit/Ausbildung/Maßnahme gefunden, benötigt aber noch Unterstützung im persönlich-sozialen Bereich, z. B.\n\u009f sozialpädagogische oder psychologische Betreuung,\n\u009f Hilfe bei der Organisation der Kinderbetreuung,\n\u009f Hilfe bei der Organisation der Mobilität zu Arbeitsstelle oder bei einem berufsbedingten Umzug, …"]
[3,"Bedarf bei Aneignung arbeitsmarktrelevanter Soft Skills","Persönliche Rahmenbedingungen, wie z. B. die Wohnsituation, Gesundheit etc. sind gefestigt, jedoch bedarf es noch der Unterstützung und Entwicklung im Bereich von arbeitsmarktrelevanten Umgangsformen und Verhaltensregeln (Soft Skills), wie z. B.\n\u009f Sozialkompetenz (z. B. Pünktlichkeit, Zuverlässigkeit, Verhalten am Arbeitsplatz),\n\u009f Personale Kompetenzen (z. B. Selbständigkeit),\n\u009f Sachkompetenzen (z. B. Ausdrucksvermögen, Auffassungsgabe),\n\u009f Methodenkompetenz (z. B. Planungsvermögen)"]
[4,"Bedarf bei Stabilisierung persönlicher Rahmenbedingungen","Unterstützungsbedarfe im Bereich der persönlichen Rahmenbedingungen sind z. B.\n\u009f Alltagskompetenzen (z. B. Klärung der Wohnsituation, Unterstützung bei Behördengängen (Jobcenter, Jugendamt etc.), …\n\u009f Personale Kompetenzen (z. B. Klärung der Erwerbsfähigkeit, Verbesserung der psychischen und physischen Gesundheit, Klärung familiärer Probleme, Stärkung der Motivation"]

{"sheet":"Katalog","index":7,"n_rows":46,"n_cols":20,"rows_kept":46,"cut":false,"hidden":true,"merged":[]}
[]
[null,"Tabelle Übernahme Daten Fragebogen zum Eintritt_Träger",null,null,null,null,null,null,null,null,null,"Tabelle Plausibilitätsprüfungen",null,null,"Teilnehmende:",{"$f":"IF('Fragebogen zum Eintritt_TN'!M19=\"\",IF('Fragebogen zum Eintritt_Träger'!M16=\"\",'Fragebogen zum Austritt_Träger'!M16 & IF('Fragebogen zum Austritt_Träger'!AA16<>\"\",\", \" & 'Fragebogen zum Austritt_Träger'!AA16,),'Fragebogen zum Eintritt_Träger'!M16 & IF('Fragebogen zum Eintritt_Träger'!AA16<>\"\",\", \" & 'Fragebogen zum Eintritt_Träger'!AA16,)),'Fragebogen zum Eintritt_TN'!M19 & IF('Fragebogen zum Eintritt_TN'!AA19<>\"\",\", \" & 'Fragebogen zum Eintritt_TN'!AA19,))","v":""},null,"Übersetzung bei Import Vorversion"]
[null,"interne_ID","Typ","Tabellenblatt","Adresse_Ziel","Wert","Zusammenfassung","Adresse_Quelle","Feldname","Bezug_zu",null,"Bezeichnung","Ergebnis",null,"ID","Teilnehmende",null,"Feldname","Alt","Neu"]
[null,1,1,"Fragebogen zum Eintritt_TN","M13",null,"Zusammenfassung","Aktenzeichen","ZF_AZ",null,null,"keine Teilnehmende",{"$f":"IF(AND('Fragebogen zum Eintritt_TN'!M19=\"\",'Fragebogen zum Eintritt_Träger'!M16=\"\",'Fragebogen zum Austritt_Träger'!M16=\"\"),1,0)","v":1},null,1,{"$f":"IF('Fragebogen zum Eintritt_TN'!M19=\"\",\"\",'Fragebogen zum Eintritt_TN'!M19 & IF('Fragebogen zum Eintritt_TN'!AA19<>\"\",\", \" & 'Fragebogen zum Eintritt_TN'!AA19,))","v":""},null,"ZF_Aufenthaltsstatus","humanitärer Aufenthaltstitel","asylberechtigt, Anerkennung Flüchtlingseigenschaft, subsidiärer Schutz"]
[null,2,1,"Fragebogen zum Eintritt_TN","M15",null,"Zusammenfassung","Zuwendungsempfänger","ZF_ZWE",null,null,"verschiedene Teilnehmende",{"$f":"IF(AND(IF(OR(P4=\"\",P5=\"\"),TRUE,EXACT(P4,P5))=TRUE,IF(OR(P5=\"\",P6=\"\"),TRUE,EXACT(P5,P6))=TRUE,IF(OR(P4=\"\",P6=\"\"),TRUE,EXACT(P4,P6))=TRUE),0,1)","v":0},null,2,{"$f":"IF('Fragebogen zum Eintritt_Träger'!M16=\"\",\"\",'Fragebogen zum Eintritt_Träger'!M16 & IF('Fragebogen zum Eintritt_Träger'!AA16<>\"\",\", \" & 'Fragebogen zum Eintritt_Träger'!AA16,))","v":""},null,"ZF_Aufenthaltsstatus","Gestattung","Gestattung (laufendes Verfahren)"]
[null,3,1,"Fragebogen zum Eintritt_TN","M19",null,"Zusammenfassung","Name","ZF_Name",null,null,"Übernahme FB 1",{"$f":"IF('Fragebogen zum Eintritt_TN'!M19=\"\",0,1)","v":0},null,3,{"$f":"IF('Fragebogen zum Austritt_Träger'!M16=\"\",\"\",'Fragebogen zum Austritt_Träger'!M16 & IF('Fragebogen zum Austritt_Träger'!AA16<>\"\",\", \" & 'Fragebogen zum Austritt_Träger'!AA16,))","v":""},null,"ZF_ProjektTN",null,false]
[null,4,1,"Fragebogen zum Eintritt_TN","AA19",null,"Zusammenfassung","Vorname","ZF_Vorname",null,null,"Übernahme FB 2",{"$f":"IF('Fragebogen zum Eintritt_Träger'!M16=\"\",0,1)","v":0},null,null,null,null,"ZF_Arbeitslos_Eintritt","ja, ich war arbeitslos gemeldet","ja"]
[null,5,1,"Fragebogen zum Eintritt_TN","M21",null,"Zusammenfassung","Anschrift","ZF_Anschrift",null,null,"Übernahme FB 3",{"$f":"IF('Fragebogen zum Austritt_Träger'!M16=\"\",0,1)","v":0},null,null,null,null,"ZF_Haushaltsform","Teilnehmer aus Alleinlebendenhaushalt (ohne Partner oder abhängige Kinder)","alleinlebend (ohne Partner oder abhängige Kinder)"]
[null,6,1,"Fragebogen zum Eintritt_TN","M23",null,"Zusammenfassung","PLZ","ZF_PLZ",null,null,null,null,null,null,null,null,"ZF_Haushaltsform","Teilnehmer aus Alleinerziehendenhaushalt mit abhängigen Kindern","alleinerziehend mit abhängigen Kindern"]
[null,7,1,"Fragebogen zum Eintritt_TN","Q23",null,"Zusammenfassung","Ort","ZF_Ort",null,null,null,null,null,null,null,null,"ZF_Haushaltsform","Teilnehmer aus Erwerbslosenhaushalt (beide Partner erwerbslos) mit abhängigen Kindern","Erwerbslosenhaushalt mit abhängigen Kindern"]
[null,8,1,"Fragebogen zum Eintritt_TN","D26",null,"Zusammenfassung","Teilnehmer aus Projekt","ZF_ProjektTN",null,null,null,null,null,null,null,null,"ZF_Haushaltsform","Teilnehmer aus Erwerbslosenhaushalt (beide Partner erwerbslos) ohne abhängige Kinder","Erwerbslosenhaushalt ohne abhängige Kinder"]
[null,9,1,"Fragebogen zum Eintritt_TN","F32",null,"Zusammenfassung","Geburtsdatum","ZF_GebDat",null,null,null,null,null,null,null,null,"ZF_Haushaltsform","Teilnehmer aus gemischtem Haushalt (ein erwerbstätiger Partner) mit abhängigen Kinder","Gemischter Haushalt mit abhängigen Kindern"]
[null,10,1,"Fragebogen zum Eintritt_TN","F37",null,"Zusammenfassung","Eintritt","ZF_Eintritt",null,null,null,null,null,null,null,null,"ZF_Haushaltsform","Teilnehmer aus gemischtem Haushalt (ein erwerbstätiger Partner) ohne abhängige Kinder","Gemischter Haushalt ohne abhängige Kinder"]
[null,11,2,"Fragebogen zum Eintritt_TN","2;3;38;39","G42;G44;G46;G48","Zusammenfassung","Geschlecht","ZF_Geschlecht",null,null,null,null,null,null,null,null,"ZF_Migration","ja, ich habe einen Migrationshintergrund bzw. gehöre einer anerkannten Minderheit an","ja"]
[null,12,2,"Fragebogen zum Eintritt_TN","4;5","G54;G56","Zusammenfassung","Schulabschluss","ZF_Schulabschluss",null,null,null,null,null,null,null,null,"ZF_Erwerbsstatus_Austritt","als Arbeitnehmer/in beschäftigt (auch Personen, die ausschließlich eine geringfügige Beschäftigung ausüben, aber nicht arbeitslos gemeldet sind)","als Arbeitnehmer/in beschäftigt"]
[null,13,2,"Fragebogen zum Eintritt_TN","6;7","G62;G64","Zusammenfassung","Berufsabschluss","ZF_Berufsabschluss",null,null,null,null,null,null,null,null,"ZF_Erwerbsstatus_Austritt","arbeitslos gemeldet (einschließlich Personen, die im Rahmen der gemeldeten Arbeitslosigkeit in geringem Umfang beschäftigt sind)","arbeitslos gemeldet"]
[null,14,2,"Fragebogen zum Eintritt_TN","8;9","G70;G72","Zusammenfassung","Studienabschluss","ZF_Studienabschluss",null,null,null,null,null,null,null,null,"ZF_Erwerbsstatus_Austritt","nicht erwerbstätig ohne Arbeitslosenmeldung (z. B. Hausfrau/Hausmann, Vollzeitelternzeit, Pflege von Angehörigen, Krankheit, sonstige Nichterwerbstätigkeit)","nicht erwerbstätig ohne Arbeitslosenmeldung"]
[null,15,2,"Fragebogen zum Eintritt_TN","10;11","AL79;G81","Zusammenfassung","Arbeitslosigkeit Eintritt","ZF_Arbeitslos_Eintritt",null,null,null,null,null,null,null,null,"ZF_Erwerbsstatus_Austritt","als Arbeitnehmer beschäftigt/in (auch Personen, die ausschließlich eine geringfügige Beschäftigung ausüben, aber nicht erwerbslos gemeldet sind)","nicht erwerbstätig ohne Arbeitslosenmeldung"]
[null,16,2,"Fragebogen zum Eintritt_TN","12;13;14;15;16","G92;G94;G96;G98;G100","Zusammenfassung","Dauer Arbeitslosigkeit vor Eintritt","ZF_Arbeitslos_Dauer",10]
[null,17,2,"Fragebogen zum Eintritt_TN","17;18","G106;G108","Zusammenfassung","Bezug Grundsicherung","ZF_Bezug_GS"]
[null,18,2,"Fragebogen zum Eintritt_TN","19;20;21;22;23","G115;G117;G119;G121;G123","Zusammenfassung","Dauer Bezug Grundsicherung","ZF_Bezug_GS_Dauer",17]
[null,19,2,"Fragebogen zum Eintritt_TN","24;25;26;27;28;29;30","G141;G143;G145;G147;G149;G151;G153","Zusammenfassung","Haushaltsform","ZF_Haushaltsform"]
[null,20,2,"Fragebogen zum Eintritt_TN","31;32;33","G168;G170;G172","Zusammenfassung","Migrationshintergrund","ZF_Migration"]
[null,21,1,"Fragebogen zum Eintritt_TN","F178",null,"Zusammenfassung","Herkunftsland","ZF_Herkunftsland",31]
[null,22,2,"Fragebogen zum Eintritt_TN","34;35;36;37","G184;G186;G188;G190","Zusammenfassung","Aufenthaltsstatus","ZF_Aufenthaltsstatus",31]
[null,23,2,"Fragebogen zum Eintritt_Träger","1;2;3;4;5;6","G27;G29;G31;G33;G35;G37","Zusammenfassung","Beruflich-fachlicher Unterstützungsbedarf bei Eintritt","ZF_BfUE"]
[null,24,2,"Fragebogen zum Eintritt_Träger","7;8;9;10","G41;G43;G45;G47","Zusammenfassung","Persönlich-sozialer Unterstützungsbedarf bei Eintritt","ZF_PsUE"]
[null,25,1,"Fragebogen zum Austritt_Träger","F26",null,"Zusammenfassung","Austritt","ZF_Austritt"]
[null,26,2,"Fragebogen zum Austritt_Träger","1;2","G33;G35","Zusammenfassung","erreichter Abschluss","ZF_Abschluss_erreicht"]
[null,27,2,"Fragebogen zum Austritt_Träger","3;4;5;6;7;8;9;10;11;12;13","AL45;G48;G50;G52;G54;G56;AL58;G61;G63;G65;AL67","Zusammenfassung","Erwerbsstatus Austritt","ZF_Erwerbsstatus_Austritt"]
[null,28,2,"Fragebogen zum Austritt_Träger","14;15;16;17;18;19","G74;G76;G78;G80;G82;G84","Zusammenfassung","Beruflich-fachlicher Unterstützungsbedarf bei Austritt","ZF_BfUA"]
[null,29,2,"Fragebogen zum Austritt_Träger","20;21;22;23","G88;G90;G92;G94","Zusammenfassung","Persönlich-sozialer Unterstützungsbedarf bei Austritt","ZF_PsUA"]
[null,30,1,"Fragebogen zum Eintritt_Träger","M10",null,"Zusammenfassung","Aktenzeichen","ZF_AZ"]
[null,31,1,"Fragebogen zum Eintritt_Träger","M12",null,"Zusammenfassung","Zuwendungsempfänger","ZF_ZWE"]
[null,32,1,"Fragebogen zum Eintritt_Träger","M16",null,"Zusammenfassung","Name","ZF_Name"]
[null,33,1,"Fragebogen zum Eintritt_Träger","AA16",null,"Zusammenfassung","Vorname","ZF_Vorname"]
[null,34,1,"Fragebogen zum Eintritt_Träger","M18",null,"Zusammenfassung","Anschrift","ZF_Anschrift"]
[null,35,1,"Fragebogen zum Eintritt_Träger","M20",null,"Zusammenfassung","PLZ","ZF_PLZ"]
[null,36,1,"Fragebogen zum Eintritt_Träger","Q20",null,"Zusammenfassung","Ort","ZF_Ort"]
[null,37,1,"Fragebogen zum Austritt_Träger","M10",null,"Zusammenfassung","Aktenzeichen","ZF_AZ"]
[null,38,1,"Fragebogen zum Austritt_Träger","M12",null,"Zusammenfassung","Zuwendungsempfänger","ZF_ZWE"]
[null,39,1,"Fragebogen zum Austritt_Träger","M16",null,"Zusammenfassung","Name","ZF_Name"]
[null,40,1,"Fragebogen zum Austritt_Träger","AA16",null,"Zusammenfassung","Vorname","ZF_Vorname"]
[null,41,1,"Fragebogen zum Austritt_Träger","M18",null,"Zusammenfassung","Anschrift","ZF_Anschrift"]
[null,42,1,"Fragebogen zum Austritt_Träger","M20",null,"Zusammenfassung","PLZ","ZF_PLZ"]
[null,43,1,"Fragebogen zum Austritt_Träger","Q20",null,"Zusammenfassung","Ort","ZF_Ort"]